Cogmind - Beta 14 @@@ ROGUE MODE // 2025.05.02 @ 22:41:39 Player: Domo Result: Destroyed by Y-45 Defender with Beam Rifle Performance ------------- Evolutions (1) 500 Regions Visited (4) 800 Robots Destroyed (32) 160 Value Destroyed (660) 660 Prototype IDs (0) 0 Alien Tech Used (0) 0 Bonus (0) 0 TOTAL SCORE: 2120 Bonus ------- None Cogmind --------- Core Integrity 0/400 Matter 300/300 Energy 99/100 System Corruption 5% Temperature Cool (9) Movement Core (50) Location -9/Storage Parts ------- > --- POWER (1) -------- (None) > --- PROPULSION (2) --- (None) > --- UTILITY (4) ------ (None) > --- WEAPON (2) ------- (None) > --- INVENTORY (5) ---- Ion Engine Thermal Generator Reactive Plating Ion Cannon Heavy Assault Rifle Peak State ------------ > --- POWER ------------ Improved Ion Engine > --- PROPULSION ------- Light Treads Improved Aluminum Leg > --- UTILITY ---------- Small Storage Unit Weight Redist. System Hardened Light Armor Plating Reactive Plating > --- WEAPON ----------- Ion Cannon Rocket Launcher > --- INVENTORY -------- Ion Engine Flight Unit Thermal Generator Reactive Plating Improved EM Shotgun Ion Cannon Heavy Assault Rifle Mini Grenade Launcher [Rating: 19] Favorites ----------- Power Improved Ion Engine Engine Improved Ion Engine Propulsion Aluminum Leg Treads Light Treads Leg Aluminum Leg Wheel Compact Wheel Flight Unit Flight Unit Utility Small Storage Unit Device Seismic Detector Storage Small Storage Unit Protection Reactive Plating Weapon Ion Cannon Energy Cannon Ion Cannon Ballistic Gun Light Assault Rifle Launcher Mini Grenade Launcher Special Weapon Mining Laser Build | -11 -10 -10 -9 -9 ------- Run | Yrd Mat Min Mat Sto Slots Evolved 2 | . . . 2 . Power . | . . . . . Propulsion . | . . . . . Utility 2 | . . . 2 . Weapon . | . . . . . Parts Attached 26 | 9 2 . 8 7 Power 4 | 1 1 . 2 . Engine 4 | 1 1 . 2 . Core . | . . . . . Reactor . | . . . . . Propulsion 6 | 3 . . . 3 Treads 1 | . . . . 1 Leg 3 | 2 . . . 1 Wheel 1 | 1 . . . . Hover . | . . . . . Flight 1 | . . . . 1 Utility 8 | 3 . . 3 2 Device 4 | 2 . . 1 1 Storage 2 | 1 . . 1 . Processor . | . . . . . Hackware . | . . . . . Protection 2 | . . . 1 1 Artifact . | . . . . . Weapon 8 | 2 1 . 3 2 Energy Gun . | . . . . . Energy Cannon 1 | . . . 1 . Ballistic Gun 2 | 1 . . 1 . Ballistic Cannon . | . . . . . Launcher 4 | . 1 . 1 2 Special Weapon 1 | 1 . . . . Impact Weapon . | . . . . . Slashing Weapon . | . . . . . Piercing Weapon . | . . . . . Special Melee Weapon . | . . . . . Unidentified Prototypes . | . . . . . Parts Lost 15 | . 1 . 5 9 Power 2 | . . . 1 1 Propulsion 3 | . . . 2 1 Utility 5 | . . . 1 4 Weapon 5 | . 1 . 1 3 Highest Loss Streak 9 | . 1 . 2 9 To Critical Strikes . | . . . . . Average Slot Usage (%) 77 | . 94 100 76 70 Engine 11 | . 14 14 10 10 Leg 10 | . 28 28 10 2 Device 12 | . 28 28 11 6 Storage 9 | . . . 11 11 Protection 10 | . . . 10 16 Energy Cannon 8 | . . . 10 9 Ballistic Gun 3 | . 14 14 3 . Launcher 8 | . 1 14 7 9 Peak Build Rating 19 | 9 9 9 17 19 Average Rating 12 | 6 8 9 14 14 On Entrance 7 | . 9 9 9 12 Naked Turns 3 | . . . . 3 Heaviest Build 38 | 11 11 11 38 37 Greatest Support 26 | 20 20 20 20 26 Greatest Overweight (x) 9 | 2 . . 9 9 Average Overweight (x) 2 | . . . 3 2 Largest Inventory Capacity 8 | 8 5 5 8 8 Average Capacity 7 | 6 5 5 8 7 Most Carried 8 | 2 5 2 6 8 Average Carried 4 | 1 2 2 5 6 Final Capacity 8 | 5 5 5 8 5 Final Carried 6 | 2 2 2 6 5 Class Distribution -------------------- 100% | Mutant Dominant Class ---------------- Mutant | -10/Materials Mutant | -10/Mines Mutant | -9/Materials Mutant | -9/Storage Resources | -11 -10 -10 -9 -9 ----------- Run | Yrd Mat Min Mat Sto Matter Collected 623 | 298 21 . 108 196 Remotely . | . . . . . Salvage Created 704 | 110 129 9 219 237 Parts 60 | 9 12 1 21 17 Haulers Intercepted . | . . . . . Recyclers Shooed 2 | . . . . 2 Parts Field Recycled . | . . . . . Retrieved Matter . | . . . . . Parts Self-Destructed . | . . . . . Prevented . | . . . . . Kills | -11 -10 -10 -9 -9 ------- Run | Yrd Mat Min Mat Sto Combat Hostiles Destroyed 22 | . 5 2 10 5 Guns 6 | . 2 . 4 . Cannons 8 | . . . 5 3 AOE 8 | . 3 2 1 2 Classes Destroyed 9 | 3 2 . 2 2 Worker 3 | 1 2 . . . Builder 3 | . . . 1 2 Tunneler 3 | 3 . . . . Recycler 1 | 1 . . . . Swarmer 9 | . 3 . 6 . Grunt 6 | . 2 2 1 1 Brawler 1 | . . . . 1 Duelist 1 | . . . . 1 Sentry 5 | . . . 3 2 Best Kill Streak 5 | 2 5 2 5 5 Combat Bots Only 4 | . 3 2 4 3 Max Kills in Single Turn 4 | 1 4 1 2 1 Gunslinging . | . . . . . Exploded 2 | . 2 1 1 1 Melee . | . . . . . Uniques/NPCs Destroyed . | . . . . . Combat | -11 -10 -10 -9 -9 -------- Run | Yrd Mat Min Mat Sto Hostile Shots Fired 155 | . 30 10 50 65 Missed 35 | . 7 2 11 15 Damage Taken 1692 | . 233 104 384 971 Core 458 | . 50 . 57 351 Absorbed by Shields . | . . . . . Ignored by Resistances 83 | . . . 73 10 Core Remaining (%) 90 | 100 . 80 . . Volleys Fired 77 | 12 15 6 22 22 Largest 2 | 2 2 1 2 2 Hottest 120 | 120 120 30 83 90 Shots Fired 88 | 16 16 6 26 24 Gun 28 | 12 12 . 4 . Cannon 33 | . . . 14 19 Launcher 21 | . 2 6 8 5 Special 6 | 4 2 . . . Kinetic 28 | 12 12 . 4 . Thermal 39 | 4 2 . 14 19 Explosive 21 | . 2 6 8 5 Electromagnetic . | . . . . . Robot Hit Streak 7 | 7 5 . 4 4 Robot Miss Streak 2 | 2 2 . 2 2 Penetration Max . | . . . . . Secondary Targets . | . . . . . Shots Hit Robots 48 | 12 10 . 12 14 Core Hits 48 | 9 13 4 12 10 Critical Kills . | . . . . . Critical Parts Destroyed . | . . . . . Critical Strikes . | . . . . . Melee Attacks . | . . . . . Impact . | . . . . . Slashing . | . . . . . Piercing . | . . . . . Sneak Attacks . | . . . . . Combat Hostiles . | . . . . . Follow-up Attacks . | . . . . . Damage Inflicted 1846 | 139 346 265 550 546 Guns 198 | 67 76 . 55 . Cannons 480 | . . . 228 252 Explosions 1050 | . 246 265 267 272 Melee . | . . . . . Ramming 22 | . . . . 22 Kinetic 198 | 67 76 . 55 . Thermal 576 | 72 24 . 228 252 Explosive 1050 | . 246 265 267 272 Electromagnetic . | . . . . . Impact . | . . . . . Slashing . | . . . . . Piercing . | . . . . . Highest Corruption 5 | . . . . 5 Average Corruption 5 | . . . . 5 Corruption Purged . | . . . . . Corruption Blocked . | . . . . . Overload Shots . | . . . . . Overflow Damage 91 | . 6 . 45 40 Projectiles 7 | . . . 7 . Explosions 84 | . 6 . 38 40 Melee . | . . . . . Knockbacks 1 | . . . . 1 Impact 1 | . . . . 1 Kinetic . | . . . . . Secondary . | . . . . . Self-Inflicted Damage 236 | . . . 34 202 Shots 7 | . . . 2 5 Rammed 3 | . . . . 3 Targets Rammed 8 | 1 . . 1 6 Kicked 5 | 1 . . 1 3 Crushed . | . . . . . Highest Temperature 378 | 60 52 15 179 378 Average Temperature 83 | 25 18 8 60 125 Received Heat Transfer 435 | . 84 60 72 219 Siege Activations . | . . . . . Robots Corrupted . | . . . . . Combat Hostiles . | . . . . . Parts Fried . | . . . . . Impact Corruptions . | . . . . . Robots Melted . | . . . . . Combat Hostiles . | . . . . . Parts Melted 1 | . . . 1 . Heat Transferred 977 | 150 50 . 370 407 Parts Sabotaged . | . . . . . Parts Stolen . | . . . . . Parts Stripped . | . . . . . Power Chain Reactions . | . . . . . Alert | -11 -10 -10 -9 -9 ------- Run | Yrd Mat Min Mat Sto Peak Influence 257 | 25 191 157 257 131 Initial 74 | . 16 74 61 . Average 52 | 10 58 122 70 30 Maximum Alert Level 1 | . . . 1 . Low Security (%) 96 | 100 100 100 91 100 Level 1 3 | . . . 8 . Level 2 . | . . . . . Level 3 . | . . . . . Level 4 . | . . . . . Level 5 . | . . . . . High Security . | . . . . . Max Security . | . . . . . Squads Dispatched 3 | . 1 . . 2 Investigation . | . . . . . Extermination . | . . . . . Reinforcement 2 | . 1 . . 1 Assault . | . . . . . Garrison 1 | . . . . 1 Intercept . | . . . . . Searches Triggered . | . . . . . Construction Impeded . | . . . . . Haulers Reinforced . | . . . . . Active Scanning Responses . | . . . . . Cargo Convoy Interrupts . | . . . . . Stealth | -11 -10 -10 -9 -9 --------- Run | Yrd Mat Min Mat Sto Distress Signals 3 | . 2 . 1 . Communications Jammed . | . . . . . Distress Signals . | . . . . . Times Spotted 43 | . 13 4 17 9 Peak Tracking Total 5 | . 5 2 5 3 Tactical Retreats 2 | . . . 1 1 Traps | -11 -10 -10 -9 -9 ------- Run | Yrd Mat Min Mat Sto Traps Triggered 1 | . . . . 1 Indirectly . | . . . . . Trap Hack Attempts . | . . . . . Triggered . | . . . . . Disarmed . | . . . . . Reprogrammed . | . . . . . Reused . | . . . . . Traps Extracted . | . . . . . Installed . | . . . . . Triggered . | . . . . . Machines | -11 -10 -10 -9 -9 ---------- Run | Yrd Mat Min Mat Sto Machines Disabled . | . . . . . Max in Single Turn . | . . . . . Machines Repaired . | . . . . . Machines Dismantled . | . . . . . Machines Sabotaged . | . . . . . Overloaded Fab Kills . | . . . . . Hacking | -11 -10 -10 -9 -9 --------- Run | Yrd Mat Min Mat Sto Machines Accessed 2 | . . . 1 1 Terminals 2 | . . . 1 1 Fabricators . | . . . . . Repair Stations . | . . . . . Recycling Units . | . . . . . Scanalyzers . | . . . . . Garrison Access . | . . . . . Total Hacks 4 | . . . 3 1 Successful 1 | . . . . 1 Failed 3 | . . . 3 . Catastrophic 1 | . . . 1 . Database Lockouts . | . . . . . Manual 3 | . . . 3 . Terminals 4 | . . . 3 1 Fabricators . | . . . . . Repair Stations . | . . . . . Recycling Units . | . . . . . Scanalyzers . | . . . . . Garrison Access . | . . . . . Terminal Hacks 1 | . . . . 1 Terminal Index 1 | . . . . 1 Fabricator Hacks . | . . . . . Repair Station Hacks . | . . . . . Recycling Unit Hacks . | . . . . . Scanalyzer . | . . . . . Garrison Access Hacks . | . . . . . Unauthorized Hacks . | . . . . . Terminals . | . . . . . Fabricators . | . . . . . Repair Stations . | . . . . . Recycling Units . | . . . . . Scanalyzers . | . . . . . Garrison Access . | . . . . . Data Cores Recovered . | . . . . . Used . | . . . . . Hacking Detections 2 | . . . 1 1 Full Trace Events . | . . . . . Feedback Events . | . . . . . Feedback Blocked . | . . . . . Robot Schematics Acquired . | . . . . . Robots Built . | . . . . . Authchips . | . . . . . Time . | . . . . . Total Robot Build Rating . | . . . . . Part Schematics Acquired . | . . . . . Parts Built . | . . . . . Authchips . | . . . . . Time . | . . . . . Total Part Build Rating . | . . . . . Parts Repaired . | . . . . . Time . | . . . . . Parts Recycled . | . . . . . Recycled Matter . | . . . . . Retrieved Matter . | . . . . . Retrieved Components . | . . . . . Parts Scanalyzed . | . . . . . Part Schematics Acquired . | . . . . . Parts Damaged . | . . . . . Bothacking | -11 -10 -10 -9 -9 ------------ Run | Yrd Mat Min Mat Sto Used RIF Installer . | . . . . . Robots Hacked . | . . . . . Non-combat . | . . . . . Combat . | . . . . . Robot Hacks Applied . | . . . . . Relay Couplers Released . | . . . . . Fabnet Peak Effective % . | . . . . . Robots Rewired . | . . . . . Allies Hacked . | . . . . . Hacks Repelled . | . . . . . Allies | -11 -10 -10 -9 -9 -------- Run | Yrd Mat Min Mat Sto Total Allies . | . . . . . Largest Group . | . . . . . Highest-Rated Group . | . . . . . Highest-Rated Ally . | . . . . . Total Orders . | . . . . . Ally Attacks . | . . . . . Total Damage . | . . . . . Kills . | . . . . . Allies Corrupted . | . . . . . Allies Melted . | . . . . . Intel | -11 -10 -10 -9 -9 ------- Run | Yrd Mat Min Mat Sto Robot Analysis Total . | . . . . . Derelict Logs Recovered . | . . . . . Drone Launches . | . . . . . Drone Recoveries . | . . . . . Exploration | -11 -10 -10 -9 -9 ------------- Run | Yrd Mat Min Mat Sto Turns Passed 2323 | 237 238 71 1050 727 Spaces Moved 894 | 151 102 50 340 251 Core 214 | 17 . . 68 129 Treads 24 | . . . . 24 Legs 634 | 132 102 50 272 78 Wheels 2 | 2 . . . . Hover . | . . . . . Flight 20 | . . . . 20 Fastest Speed 50 | 50 120 120 120 50 Average Speed 218 | 120 120 120 287 243 Slowest Speed 500 | 150 120 120 500 500 Overloaded Moves . | . . . . . Propulsion Burnouts . | . . . . . Robots Hopped . | . . . . . Cave-ins Triggered . | . . . . . Exploration Rate (%) 21 | 6 25 13 28 36 Regions Visited 4 Branch Regions 2 Pre-discovered Areas . | . . . . . Known Exits Taken . | . . . . . Unknown Exits Taken 4 | 1 1 1 1 . Scrap Searched . | . . . . . Spaces Dug . | . . . . . Terrain Destroyed 128 | . 9 24 64 31 Melee . | . . . . . Projectile 3 | . . . 1 2 AOE 125 | . 9 24 63 29 Terrain Rammed . | . . . . . Walls Destroyed . | . . . . . Machines Disabled . | . . . . . Actions | -11 -10 -10 -9 -9 --------- Run | Yrd Mat Min Mat Sto Total 1160 | 181 200 55 386 338 Wait 132 | 5 78 . 5 44 Move 890 | 150 101 49 339 251 Hop . | . . . . . Pick Up 15 | 2 2 . 7 4 Fast Attach 13 | 8 . . 2 3 Attach 6 | . 1 . 2 3 Detach 3 | 1 . . 1 1 Swap 7 | 1 1 . 4 1 Drop 9 | 1 2 . 3 3 Fire 77 | 12 15 6 22 22 Melee . | . . . . . Ram 2 | . . . . 2 Kick 5 | 1 . . 1 3 Crush 1 | . . . . 1 Escape Stasis . | . . . . . Rewire . | . . . . . Trap . | . . . . . Miscellaneous . | . . . . . Route ------- -11/Scrapyard -10/Materials -10/Mines -9/Materials (discovered 2 exits: [*Min] / *Sto) -9/Storage History --------- Turn | Location | Event 2 | -11/Scrapyard | Met Revision 17 15 | -11/Scrapyard | Discovered new exit (range 16) 238 | -11/Scrapyard | Entered Materials 315 | -10/Materials | Build established: Mutant 461 | -10/Materials | Discovered new exit (range 10) 476 | -10/Materials | Entered Mines 536 | -10/Mines | Discovered new exit (range 9) 547 | -10/Mines | Entered Materials 547 | -9/Materials | Evolved 2 slots: Utility x2 660 | -9/Materials | Discovered new exit (range 16) 1235 | -9/Materials | Discovered new exit (range 5) 1597 | -9/Materials | Entered Storage 2245 | -9/Storage | Garrison activated, responded to threat 2298 | -9/Storage | Core integrity fell below 50% 2319 | -9/Storage | Core integrity fell below 20% 2324 | -9/Storage | Destroyed by Y-45 Defender with Beam Rifle Last Messages --------------- U-05 Engineer lays Concrete. M-13 Machinist destroyed. U-05 Engineer lays Concrete. K-01 Serf collects debris. B-36 Bruiser suffers critical hit (Destroy). U-05 Engineer lays Concrete. R-06 Scavenger collects Wheel. U-05 Engineer builds a Wall. K-01 Serf collects debris. Slammed into R-06 Scavenger. Knocked back. K-01 Serf collects debris. Slammed into B-36 Bruiser. U-05 Engineer lays Concrete. K-01 Serf collects debris. Sml. Storage Unit destroyed. System corrupted by crushing effect (+5). U-05 Engineer builds a Wall. K-01 Serf collects debris. R-06 Scavenger collects Machine Analyzer. Map ----- +----------------------------------------------------+ | | | | | ?????????????????????????????????????????????????? | | ?????????????????????????????????????????????????? | | ?????????????????????????????????????????????????? | | ?????????????????????????????????????????????????? | | ?????????????????????????????????????????????????? | | ?????????????????????????????????????????????????? | | ?????????????????????????????????????????????????? | | ????????????????????????###??????????????????????? | | ???????????????????????? ??????????????????????? | | ???????????????????????? ??????????????????????? | | ???????????????????????? ??????????????????????? | | ???????????????????????? #??????????????????????? | | ???????????????????????? #??????????????????????? | | ???????????????????????? #??????????????????????? | | ??????????????????#?????# #??????????????????????? | | ?????????????????? ??###+######?????????????????? | | ???????????????????t ?# ##????????????????? | | ??????????????????? ## r""" #????????????????? | | ???????????????????#"""k %""" #?????????????????? | | ???????????????????#"R *!""" ####??????????????? | | ???????????????????#""" ! """#??????????????? | | ???????????????????#### k """ G"#??????????????? | | ???????????????????# #% Y""" """#??????????????? | | ?????????????????### b@ """ ###???????????????? | | ????????????????## %[ #?????????????????? | | ????????????????# # # ## ###########??????????? | | ????????????????+ r # #??????????? | | ????????????????# ### ## # """""" #??????????? | | ????????????????## # # # "????" #??????????? | | ????????????????##/# #"# # "????" #??????????? | | ???????????????? # #?# + """""" #??????????? | | ???????????????""" ###?## # #???#??????? | | ?????????????????" ?????# # #?? #??????? | | ?????????????????" ??????# # #? #??????? | | ?????????????????" ??????# # # #??????? | | ?????????????????" ??????# #/##+##+## #??????? | | ?????????????????"???????##### +??????? | | ?????????????????????????????# #??????? | | ?????????????????????????????# +??????? | | ???????????????????+?######### #??????? | | ??????????????????? ?# |[! + #??????? | | ??????????????????# ?#/ # ##+#######+#??????? | | ??????????????????# ?#* # # #?????????????? | | ??????????????????# ?###+##+## # #?????????????? | | ?????????????????## #??# # #?????????????? | | ????????????????## ### # #?????????????? | | ???????????? # #?????????????? | | ???????????????### ######+##+# #?????????????? | +----------------------------------------------------+ Best States ------------- Heat Dissipation 28 Energy Generation 12 Energy Capacity 265 Matter Stores 300 Matter Capacity 300 Sight Range 16 Terrain Scan Range 16 Terrain Scan Density 10 Additional Mass Support 6 Armor Coverage 300 Resistance: KI 20 Evasion (%) 55 Recoil Reduction 1 Item Schematics ----------------- None Robot Schematics ------------------ None Fabricated ------------ Nothing Alien Tech Used ----------------- None Achievements -------------- None Challenges ------------ None Game ------ Seed TrackerTripodBroadsword Manual? 0 Play Time 00:20:26 Cumulative 15.9 hours Start 2025.04.30 @ 22:14:39 End 2025.05.02 @ 22:41:39 Sessions 1 Manual Loads 0 Difficulty Rogue Special Mode None Game No. 20 Rogue 9 Adventurer 11 Explorer 0 Win Type - Total 0 Types 0/0/0/0/0/0/0/0/0 Lore% 4 Gallery% 13 Achievement% 14 Wizard Run 0 Options --------- Layout 1 ASCII 0 Keyboard 1 Movement Vi Keybinds 0 Fullscreen 2 Font 24/Smallcaps Map View 50x35 Zoom Use 8% Tactical HUD 0 Map Filters NONE Filters NONE Steam 1 RUN: 5f12c079-3f46-4337-b82f-99b262cc8715